Cogmind - Beta 15 @@@ ROGUE MODE // 2025.06.01 @ 23:50:55 // Winter2019/RPGLIKE Player: Jack Result: Self-destructed Performance ------------- Evolutions (8) 4000 Regions Visited (18) 3600 Robots Destroyed (469) 2345 Value Destroyed (24186) 24186 Prototype IDs (13) 260 Alien Tech Used (0) 0 Bonus (15934) 15934 TOTAL SCORE: 50325 Bonus ------- Triggered High Security 1000 High Alert Combat Kills 12043 Follower Combat Kills 403 Registered with UFD 300 Met Optimus in HQ 500 Met Data Miner 300 Scanned by Researcher 500 Met Optimus at Protoforge 1000 Friendly Fire -112 Cogmind --------- Core Integrity 782/900 Matter 300/300 Energy 731/860 System Corruption 22% Temperature Cool (0) Movement Flying (42) Location -2/Protoforge Parts ------- > --- POWER (1) -------- Light Nuclear Core > --- PROPULSION (2) --- Field Propulsion Drive Field Propulsion Drive (fused) > --- UTILITY (6) ------ Advanced Heat Sink Salvage Targeting Computer Salvage Targeting Computer Energy Filter > --- WEAPON (5) ------- Thermic Laser Thermic Laser Thermic Laser (fused) Thermic Laser > --- INVENTORY (10) --- UFD Drillbomb Peak State ------------ > --- POWER ------------ Light Nuclear Core > --- PROPULSION ------- Field Propulsion Drive Field Propulsion Drive > --- UTILITY ---------- Advanced Heat Sink Salvage Targeting Computer Salvage Targeting Computer Energy Filter Makeshift Medium Armor Plating Force Field > --- WEAPON ----------- Thermic Laser Thermic Laser Thermic Laser Thermic Laser Thermic Laser > --- INVENTORY -------- UFD Drillbomb [Rating: 75] Favorites ----------- Power Light Nuclear Core Engine Light Ion Engine Power Core Light Nuclear Core Propulsion Field Propulsion Drive Flight Unit Field Propulsion Drive Utility Salvage Targeting Computer Device Advanced Heat Sink Processor Salvage Targeting Computer Hackware Hacking Suite Protection Reflective Plating Weapon Thermic Laser Energy Gun Thermic Laser Special Weapon Plasma Cutter Build | -11 -10 -9 -9 -9 -9 -6 -6 -6 -6 -5 -5 -5 -5 -4 -3 -2 -2 -2 ------- Run | Yrd Mat Mat Sto Rec Scr Fac Low Low Dat Pro Fac Was Fac Fac Res Res Tes Frg Slots Evolved 10 | 2 . . 5 1 . . 1 . . . 1 . . . . . . . Power . | . . . . . . . . . . . . . . . . . . . Propulsion 1 | 1 . . . . . . . . . . . . . . . . . . Utility 5 | . . . 4 . . . 1 . . . . . . . . . . . Weapon 4 | 1 . . 1 1 . . . . . . 1 . . . . . . . Parts Attached 52 | 1 4 5 12 1 1 7 2 2 . 3 8 1 2 . . . . 3 Power 4 | . 1 . 1 . . 1 . . . 1 . . . . . . . . Engine 3 | . 1 . 1 . . 1 . . . . . . . . . . . . Core 1 | . . . . . . . . . . 1 . . . . . . . . Reactor . | . . . . . . . . . . . . . . . . . . . Propulsion 10 | . 2 1 1 . . . 1 . . 2 3 . . . . . . . Treads . | . . . . . . . . . . . . . . . . . . . Leg . | . . . . . . . . . . . . . . . . . . . Wheel . | . . . . . . . . . . . . . . . . . . . Hover . | . . . . . . . . . . . . . . . . . . . Flight 10 | . 2 1 1 . . . 1 . . 2 3 . . . . . . . Utility 21 | . . 3 8 . . 2 1 . . . 2 1 2 . . . . 2 Device 4 | . . . . . . 2 . . . . 1 . 1 . . . . . Storage . | . . . . . . . . . . . . . . . . . . . Processor 6 | . . . 6 . . . . . . . . . . . . . . . Hackware 2 | . . . 1 . . . . . . . . . . . . . . 1 Protection 9 | . . 3 1 . . . 1 . . . 1 1 1 . . . . 1 Artifact . | . . . . . . . . . . . . . . . . . . . Weapon 17 | 1 1 1 2 1 1 4 . 2 . . 3 . . . . . . 1 Energy Gun 16 | 1 1 1 2 1 . 4 . 2 . . 3 . . . . . . 1 Energy Cannon . | . . . . . . . . . . . . . . . . . . . Ballistic Gun . | . . . . . . . . . . . . . . . . . . . Ballistic Cannon . | . . . . . . . . . . . . . . . . . . . Launcher . | . . . . . . . . . . . . . . . . . . . Special Weapon 1 | . . . . . 1 . . . . . . . . . . . . . Impact Weapon . | . . . . . . . . . . . . . . . . . . . Slashing Weapon . | . . . . . . . . . . . . . . . . . . . Piercing Weapon . | . . . . . . . . . . . . . . . . . . . Special Melee Weapon . | . . . . . . . . . . . . . . . . . . . Unidentified Prototypes 2 | . . . . . . . . . . . 1 . 1 . . . . . Parts Lost 5 | . . . 1 . . 1 . . . . . . . . . . . 3 Power . | . . . . . . . . . . . . . . . . . . . Propulsion . | . . . . . . . . . . . . . . . . . . . Utility 4 | . . . 1 . . 1 . . . . . . . . . . . 2 Weapon 1 | . . . . . . . . . . . . . . . . . . 1 Highest Loss Streak 1 | . . . 1 . . 1 . . . . . . . . . . . 1 To Critical Strikes 1 | . . . . . . . . . . . . . . . . . . 1 Average Backups . | . . . . . . 1 . 1 3 3 2 1 . . . . . . Power . | . . . . . . . . . . . . . . . . . . . Propulsion . | . . . . . . . . . . . . . . . . . . . Utility . | . . . . . . . . 1 1 1 . 1 . . . . . . Weapon . | . . . . . . . . . 2 2 1 . . . . . . . Tool/Special . | . . . . . . . . . . . . . . . . . . . Unused Backups 1 | . . . . . . 1 . . . . . . . . . . . . Power . | . . . . . . . . . . . . . . . . . . . Propulsion . | . . . . . . . . . . . . . . . . . . . Utility . | . . . . . . . . . . . . . . . . . . . Weapon 1 | . . . . . . 1 . . . . . . . . . . . . Tool/Special . | . . . . . . . . . . . . . . . . . . . Average Slot Usage (%) 96 | . 40 96 93 93 96 96 100 100 100 100 98 92 96 99 99 99 99 94 Engine 3 | . 4 16 11 8 8 8 7 7 7 . . . . . . . . . Core 4 | . . . . . . . . . . 6 7 7 7 7 6 7 7 7 Flight 15 | . 8 33 23 17 16 16 15 15 15 15 14 14 14 14 14 14 13 14 Device 14 | . . . . . . 4 12 15 15 15 21 21 20 21 21 21 21 20 Processor 17 | . . . 19 26 25 25 23 23 23 23 20 14 14 14 14 14 14 14 Hackware 2 | . . . 3 8 8 8 7 7 7 7 . . . . . . . . Protection 4 | . . 12 11 8 8 2 . . . . . . 4 7 6 7 7 3 Energy Gun 31 | . 27 33 23 23 25 29 30 30 30 30 32 35 34 34 35 34 35 33 Peak Build Rating 75 | 1 5 7 17 19 21 41 43 43 42 46 63 66 68 61 61 62 61 75 Average Rating 47 | . 2 5 13 18 20 31 41 42 42 45 56 58 59 60 60 61 60 63 On Entrance 36 | . 1 5 7 17 19 21 37 43 42 42 46 58 58 61 61 61 61 61 Naked Turns . | . . . . . . . . . . . . . . . . . . . Heaviest Build 44 | 1 5 10 12 15 16 26 23 23 23 25 43 36 40 40 40 40 40 44 Greatest Support 44 | 3 8 13 13 18 18 23 24 24 24 28 39 39 44 44 44 44 44 44 Greatest Overweight (x) 1 | . . . . . . 1 . . . . 1 . 1 . . . 1 . Average Overweight (x) . | . . . . . . . . . . . . . . . . . . . Largest Inventory Capacity 10 | . . 1 1 1 2 2 2 3 3 3 3 3 4 6 9 10 10 10 Average Capacity 4 | . . . 1 1 1 2 2 2 3 3 3 3 3 5 7 9 10 10 Most Carried 10 | . . 1 1 1 2 2 2 3 3 3 3 3 4 3 8 10 9 10 Average Carried 2 | . . . . 1 1 1 . 2 3 3 2 3 2 . 3 8 4 4 Final Capacity 10 | . . 1 1 1 2 2 2 3 3 3 3 3 4 6 9 10 10 10 Final Carried 10 | . . 1 1 1 2 2 1 3 3 3 3 3 1 . 8 9 2 10 Class Distribution -------------------- 25% | Pyromaniac-Gunner 14% | Hacker-Gunner 14% | Hauler-Gunner 12% | Scavenger-Gunner 10% | Pyromaniac-Tank 7% | Hauler-Tank 6% | Scavenger-Mutant 5% | Hacker-Sprinter Dominant Class ---------------- Hacker-Mutant | -10/Materials Scavenger-Mutant | -9/Materials Scavenger-Mutant | -9/Storage Scavenger-Gunner | -9/Recycling Scavenger-Gunner | -9/Scraptown Hacker-Gunner | -6/Factory Hacker-Gunner | -6/Lower Caves Hacker-Gunner | -6/Lower Caves Hacker-Gunner | -6/Data Miner Hacker-Sprinter | -5/Proximity Caves Pyromaniac-Gunner | -5/Factory Pyromaniac-Gunner | -5/Waste Pyromaniac-Tank | -5/Factory Pyromaniac-Gunner | -4/Factory Pyromaniac-Gunner | -3/Research Hauler-Gunner | -2/Research Hauler-Gunner | -2/Testing Hauler-Tank | -2/Protoforge Resources | -11 -10 -9 -9 -9 -9 -6 -6 -6 -6 -5 -5 -5 -5 -4 -3 -2 -2 -2 ----------- Run | Yrd Mat Mat Sto Rec Scr Fac Low Low Dat Pro Fac Was Fac Fac Res Res Tes Frg Matter Collected 1551 | 162 88 40 150 10 10 90 57 35 . 55 175 65 228 31 74 21 28 232 Remotely . | . . . . . . . . . . . . . . . . . . . Salvage Created 25512 | . 106 217 235 295 438 2161 532 831 . 475 2895 827 5696 1816 4113 2255 260 2360 Parts 806 | . 14 19 9 23 25 50 16 29 . 24 96 5 139 62 121 38 7 129 Haulers Intercepted 5 | . . . 1 . . . . . . . . . 2 . 1 1 . . Recyclers Shooed 7 | . . . . 1 . 1 . . . . . . 4 . 1 . . . Parts Field Recycled . | . . . . . . . . . . . . . . . . . . . Retrieved Matter . | . . . . . . . . . . . . . . . . . . . Parts Self-Destructed 70 | . . . . . 5 . 13 29 . 23 . . . . . . . . Prevented 1 | . . . . . . . . . . 1 . . . . . . . . Kills | -11 -10 -9 -9 -9 -9 -6 -6 -6 -6 -5 -5 -5 -5 -4 -3 -2 -2 -2 ------- Run | Yrd Mat Mat Sto Rec Scr Fac Low Low Dat Pro Fac Was Fac Fac Res Res Tes Frg Combat Hostiles Destroyed 396 | . 6 10 3 7 8 35 8 14 . 12 43 1 74 36 58 34 3 44 Guns 246 | . 6 10 2 7 8 22 5 13 . 9 19 . 50 25 20 17 2 31 Classes Destroyed 34 | . 2 1 3 5 5 5 2 . . 1 . 1 4 . 1 . 1 3 Worker 16 | . . . . . . 1 . . . . 5 . 4 1 3 1 1 . Builder 12 | . . . . 2 . . . . . . 6 . 2 . 1 . . 1 Tunneler 1 | . . . . . . 1 . . . . . . . . . . . . Hauler 5 | . . . 1 . . . . . . . . . 2 . 1 1 . . Recycler 8 | . . . . 1 1 2 . . . . . . 4 . . . . . Carrier 3 | . . . . . . . . . . . . . 2 . 1 . . . Minesweeper 1 | . . . . . . . . . . 1 . . . . . . . . Mechanic 1 | . . . . . . . . . . . . . 1 . . . . . Operator 6 | . . . 1 . . . . . . . 1 . 2 . . . . 2 Watcher 19 | . . . 1 . . 1 . . . . 6 . 4 . 5 . 1 1 Swarmer 67 | . 3 5 . . . 3 2 7 . 7 5 . 5 18 2 2 . 8 Cutter 3 | . . . . . . . . . . . . . 3 . . . . . Saboteur 6 | . . . . . . . . . . . . . 2 . 2 2 . . Grunt 150 | . 3 2 1 1 . 23 3 5 . . 22 . 32 7 26 15 . 10 Brawler 10 | . . . . 1 . . . . . 2 . . 4 . 3 . . . Duelist 9 | . . . . . . 1 . 1 . . . . 4 . 2 . . 1 Protector 4 | . . . . 1 . . . . . . . . 1 . 2 . . . Researcher 1 | . . . . . . . . . . . . . . . . . 1 . Sentry 35 | . . 3 2 3 . 2 1 . . 1 3 . 5 3 6 3 . 3 Specialist 2 | . . . . . . . . . . . . . . . 2 . . . Hunter 27 | . . . . . . 1 . . . 2 6 . 8 2 . 4 . 4 Programmer 44 | . . . . 1 . 4 . . . . 6 . 6 4 9 7 2 5 Heavy 9 | . . . . . . 1 . . . . 1 . 3 1 2 1 . . Behemoth 7 | . . . . . . . 1 1 . . . . 1 1 2 . . 1 Compactor 1 | . . . . . . . . . . . . 1 . . . . . . Hotshot 8 | . . . . . . . . . . . . . . . . . . 8 Striker 2 | . . . . . . . . . . . . . . . . . . 2 Executioner 1 | . . . . . . . . . . . . . . . . . . 1 Protovariant L 1 | . . . . . . . . . . . . . . . . . 1 . Federalist 1 | . . . . . 1 . . . . . . . . . . . . . Explorer 1 | . . . . . 1 . . . . . . . . . . . . . Ranger 1 | . . . . . 1 . . . . . . . . . . . . . Guru 2 | . . . . . 2 . . . . . . . . . . . . . Scrapper 3 | . . . . . 3 . . . . . . . . . . . . . Scrapoid 1 | . . . . . . . . . . . . . . . . . . 1 Thief 1 | . . . . . . . 1 . . . . . . . . . . . Best Kill Streak 16 | . 3 3 2 5 3 5 3 4 . 6 16 1 12 8 7 8 5 4 Combat Bots Only 9 | . 3 3 1 2 3 4 3 4 . 5 8 1 9 8 7 8 2 4 Max Kills in Single Turn 5 | . 1 1 1 2 1 2 1 2 . 2 5 1 2 2 1 1 2 2 Gunslinging 1 | . . . . . . . . 1 . 1 . . 1 1 . . . 1 Exploded . | . . . . . . . . . . . . . . . . . . . Melee . | . . . . . . . . . . . . . . . . . . . Uniques/NPCs Destroyed . | . . . . . . . . . . . . . . . . . . . Combat | -11 -10 -9 -9 -9 -9 -6 -6 -6 -6 -5 -5 -5 -5 -4 -3 -2 -2 -2 -------- Run | Yrd Mat Mat Sto Rec Scr Fac Low Low Dat Pro Fac Was Fac Fac Res Res Tes Frg Hostile Shots Fired 2302 | . 44 77 53 19 81 200 22 50 . 30 149 . 367 221 282 265 24 418 Missed 1009 | . 9 35 22 3 30 95 14 21 . 15 58 . 170 101 133 139 10 154 Hits 1293 | . 35 42 31 16 51 105 8 29 . 15 91 . 197 120 149 126 14 264 Melee 11 | . . . . . . . . . . . . . 2 1 1 2 . 5 Projectile 1282 | . 35 42 31 16 51 105 8 29 . 15 91 . 195 119 148 124 14 259 AOE 1 | . . . . . . . . . . . . . 1 . . . . . Critical Strikes 66 | . . 1 1 2 3 5 . 2 . . 3 . 8 4 11 9 1 16 Part Disruptions 3 | . . . . . . 1 . . . . . . 1 . . . . 1 Damage Taken 17419 | . 308 452 459 239 616 1724 117 622 . 245 1126 . 2137 1309 1646 1817 302 4300 Core 13348 | . 279 335 300 174 469 1396 101 502 . 202 912 . 1624 991 1204 1330 218 3311 Absorbed by Shields 9246 | . . . . . . . . . . . 575 . 1905 1097 1611 1084 188 2786 Redirected to Core 10268 | . 94 240 244 115 345 984 54 436 . 149 727 . 1211 803 1002 1160 218 2486 Ignored by Resistances 1470 | . . . . . . . . . . . . . 110 58 215 164 20 903 Regen/Repaired (Parts) 65 | . . . . . . . . . . . . . . . 65 . . . Core Remaining (%) 73 | 100 82 . . . 31 . . . . 82 . . 71 50 100 . . . Volleys Fired 935 | . 29 42 32 29 22 95 17 24 . 15 102 6 153 46 121 62 10 130 Largest 5 | . 2 2 2 3 3 4 4 4 . 4 5 5 5 5 5 5 5 5 Hottest 425 | . 80 96 112 168 168 340 340 335 . 340 425 425 425 425 425 425 425 425 Shots Fired 3883 | . 43 84 64 77 66 346 68 95 . 60 431 30 738 228 601 307 50 595 Gun 3883 | . 43 84 64 77 66 346 68 95 . 60 431 30 738 228 601 307 50 595 Cannon . | . . . . . . . . . . . . . . . . . . . Launcher . | . . . . . . . . . . . . . . . . . . . Special . | . . . . . . . . . . . . . . . . . . . Kinetic . | . . . . . . . . . . . . . . . . . . . Thermal 3883 | . 43 84 64 77 66 346 68 95 . 60 431 30 738 228 601 307 50 595 Explosive . | . . . . . . . . . . . . . . . . . . . Electromagnetic . | . . . . . . . . . . . . . . . . . . . Robot Hit Streak 51 | . 8 19 13 7 11 47 12 21 . 10 35 51 49 23 35 28 38 48 Robot Miss Streak 5 | . 4 3 4 3 3 3 3 3 . 3 3 1 5 4 4 3 2 5 Penetration Max . | . . . . . . . . . . . . . . . . . . . Secondary Targets 77 | . . 1 . . 1 3 1 2 . 5 6 . 16 13 9 12 . 8 Max Gunslinging Chain 2 | . . 1 . . 1 1 1 1 . 1 1 . 2 2 1 1 . 1 Shots Hit Robots 2745 | . 26 49 46 28 50 248 37 66 . 41 271 23 517 155 460 242 43 443 Core Hits 1059 | . 9 15 16 14 19 92 15 42 . 24 111 4 203 61 169 93 14 158 Critical Kills . | . . . . . . . . . . . . . . . . . . . Critical Parts Destroyed . | . . . . . . . . . . . . . . . . . . . Critical Strikes 472 | . . . 5 3 8 58 7 8 . 8 50 1 81 35 75 55 7 71 Burn 472 | . . . 5 3 8 58 7 8 . 8 50 1 81 35 75 55 7 71 Melee Attacks . | . . . . . . . . . . . . . . . . . . . Impact . | . . . . . . . . . . . . . . . . . . . Slashing . | . . . . . . . . . . . . . . . . . . . Piercing . | . . . . . . . . . . . . . . . . . . . Sneak Attacks . | . . . . . . . . . . . . . . . . . . . Combat Hostiles . | . . . . . . . . . . . . . . . . . . . Follow-up Attacks . | . . . . . . . . . . . . . . . . . . . Damage Inflicted 51722 | . 287 541 657 436 772 4603 673 1426 . 765 5512 432 9726 3038 8785 4793 757 8519 Guns 50886 | . 287 541 657 436 772 4603 673 1426 . 765 5091 432 9350 3038 8785 4754 757 8519 Cannons . | . . . . . . . . . . . . . . . . . . . Explosions 787 | . . . . . . . . . . . 421 . 366 . . . . . Melee . | . . . . . . . . . . . . . . . . . . . Ramming 49 | . . . . . . . . . . . . . 10 . . 39 . . Kinetic . | . . . . . . . . . . . . . . . . . . . Thermal 50886 | . 287 541 657 436 772 4603 673 1426 . 765 5091 432 9350 3038 8785 4754 757 8519 Explosive 350 | . . . . . . . . . . . . . 350 . . . . . Electromagnetic 437 | . . . . . . . . . . . 421 . 16 . . . . . Impact . | . . . . . . . . . . . . . . . . . . . Slashing . | . . . . . . . . . . . . . . . . . . . Piercing . | . . . . . . . . . . . . . . . . . . . Highest Corruption 22 | . 4 . . 1 3 1 1 1 1 1 6 6 17 4 5 11 12 22 Average Corruption 6 | . 4 . . 1 1 1 1 1 1 1 4 6 11 2 4 4 11 14 Corruption Purged . | . . . . . . . . . . . . . . . . . . . Corruption Blocked . | . . . . . . . . . . . . . . . . . . . Effects 303 | . . . . . 4 7 2 4 . 3 29 3 86 8 18 18 11 110 Message Errors 58 | . . . . . 2 4 . . . 1 3 . 16 1 3 6 2 20 Matter Fused 59 | . . . . . . . 2 1 . 1 9 1 18 2 3 4 1 17 Heat Flow Errors 33 | . . . . . . 2 . 1 . . 3 2 9 . 3 2 1 10 Energy Discharges 20 | . . . . . . . . . . . 4 . 8 . 1 . 2 5 Parts Rejected 9 | . . . . . . 1 . . . . 1 . 2 1 . . . 4 Parts Fused 2 | . . . . . . . . . . . . . . . . . . 2 Data Loss (minor) 26 | . . . . . 2 . . 1 . . . . 6 3 1 . 2 11 Data Loss (major) 7 | . . . . . . . . . . . . . 2 1 1 1 . 2 Misfires 3 | . . . . . . . . . . . . . 1 . 1 . 1 . Alerts 6 | . . . . . . . . . . 1 1 . . . . 1 . 3 Misdirections 21 | . . . . . . . . . . . . . 5 . . 3 1 12 Weapon Failures 59 | . . . . . . . . 1 . . 8 . 19 . 5 1 1 24 Overload Shots . | . . . . . . . . . . . . . . . . . . . Overflow Damage 12 | . . . . . . . . . . . . . 12 . . . . . Projectiles . | . . . . . . . . . . . . . . . . . . . Explosions 12 | . . . . . . . . . . . . . 12 . . . . . Melee . | . . . . . . . . . . . . . . . . . . . Knockbacks . | . . . . . . . . . . . . . . . . . . . Impact . | . . . . . . . . . . . . . . . . . . . Kinetic . | . . . . . . . . . . . . . . . . . . . Secondary . | . . . . . . . . . . . . . . . . . . . Self-Inflicted Damage 189 | . . . . . . . . . . . . . 170 . . 19 . . Shots 3 | . . . . . . . . . . . . . 3 . . . . . Rammed 2 | . . . . . . . . . . . . . 1 . . 1 . . Targets Rammed 2 | . . . . . . . . . . . . . 1 . . 1 . . Kicked . | . . . . . . . . . . . . . . . . . . . Crushed . | . . . . . . . . . . . . . . . . . . . Highest Temperature 279 | . 58 218 99 132 26 279 60 72 . 74 272 186 266 100 198 154 90 266 Average Temperature 41 | . 26 92 33 59 9 34 24 22 . 32 44 55 37 36 42 41 36 127 Received Heat Transfer 3417 | . 72 108 204 99 242 654 15 126 . . 123 . 317 84 291 203 16 863 Effects 3 | . . . . . . . . . . . 3 . . . . . . . Interference 3 | . . . . . . . . . . . 3 . . . . . . . Siege Activations . | . . . . . . . . . . . . . . . . . . . Martial Activations . | . . . . . . . . . . . . . . . . . . . Shielding Activations . | . . . . . . . . . . . . . . . . . . . Robots Disrupted 1 | . . . . . . . . . . . . . 1 . . . . . Combat Hostiles 1 | . . . . . . . . . . . . . 1 . . . . . Robots Corrupted . | . . . . . . . . . . . . . . . . . . . Combat Hostiles . | . . . . . . . . . . . . . . . . . . . Parts Fried 7 | . . . . . . . . . . . 2 . 4 . . 1 . . Impact Corruptions . | . . . . . . . . . . . . . . . . . . . Robots Melted 164 | . . . 1 . . 15 3 1 . 3 24 2 29 11 41 17 2 15 Combat Hostiles 151 | . . . 1 . . 13 3 1 . 3 24 2 24 11 38 17 1 13 Parts Melted 1018 | . 1 2 4 5 18 96 18 10 . 17 111 6 219 72 184 135 23 97 Heat Transferred 178087 | . 650 1249 2014 1324 2349 18080 2550 4275 . 2850 18725 1300 33562 11332 29206 17336 2558 28727 Parts Sabotaged 2 | . . . . . . . . . . . . . . . . 2 . . Parts Stolen . | . . . . . . . . . . . . . . . . . . . Parts Stripped . | . . . . . . . . . . . . . . . . . . . Power Chain Reactions 3 | . . . . . . . . . . . 3 . . . . . . . Alert | -11 -10 -9 -9 -9 -9 -6 -6 -6 -6 -5 -5 -5 -5 -4 -3 -2 -2 -2 ------- Run | Yrd Mat Mat Sto Rec Scr Fac Low Low Dat Pro Fac Was Fac Fac Res Res Tes Frg Maximum Alert Level 5 | . . . 2 1 . 3 . . . . 4 2 5 5 5 5 4 5 Low Security (%) 12 | 100 100 100 7 . . 48 . . . . 25 . . . . . . . Level 1 10 | . . . 8 100 . 26 . . . . 15 61 6 . . . . . Level 2 13 | . . . 84 . . 23 . . . . 12 38 15 . . . . 12 Level 3 18 | . . . . . . 1 . . . . 30 . 29 17 19 . . 33 Level 4 32 | . . . . . . . . . . . 16 . 32 59 53 75 100 42 Level 5 8 | . . . . . . . . . . . . . 3 23 26 4 . 11 High Security 3 | . . . . . . . . . . . . . 12 . . 19 . . Max Security . | . . . . . . . . . . . . . . . . . . . Peak Influence 2132 | . 90 173 650 289 . 725 . . . . 1195 415 2132 1831 1972 2004 1169 1844 Initial 1127 | . . 37 68 217 . . . . . . 53 415 255 1100 957 1105 1127 637 Average 923 | . 41 73 505 236 . 239 . . . . 626 393 1079 1364 1435 1460 1140 1124 Influence Increases 13311 | . 170 286 926 262 10 1121 175 410 . 265 1612 . 2403 1033 1571 1153 107 1807 Destroy 0b10 Robot/C 8140 | . 120 200 480 120 . 700 140 280 . 240 860 . 1500 720 1140 680 80 880 Destroy 0b10 Robot/NC 385 | . . . 25 20 10 25 . 5 . 5 90 . 100 5 60 10 10 20 Destroy Leader 1698 | . 20 50 144 . . 152 20 50 . 20 192 . 342 130 252 152 2 172 Allied During Kill 204 | . . . 202 2 . . . . . . . . . . . . . . Successful Hack 92 | . . 6 15 . . 15 . . . . 10 . 21 5 14 6 . . Select Force Hacks 170 | . . . . 120 . . . . . . . . . . . 50 . . Disable Machine 345 | . . . . . . . . . . . 270 . 75 . . . . . Destroy Structure 102 | . . . . . . 4 . . . . 10 . 80 8 . . . . Partial Spotted 240 | . . 15 60 . . 15 . . . . 30 . 30 . 15 75 . . Lose Combat Pursuer 1935 | . 30 15 . . . 210 15 75 . . 150 . 255 165 90 180 15 735 Influence Decreases 11536 | . 80 213 531 611 219 396 409 293 608 180 510 822 636 1398 1428 1115 977 1110 Entered New Map 6773 | . . 53 95 341 209 . 269 95 608 . 32 772 110 1088 866 861 877 497 Time Decay 4533 | . 80 160 286 230 10 386 140 198 . 180 478 50 526 310 562 254 100 583 Lost Part 50 | . . . 10 . . 10 . . . . . . . . . . . 30 Lost Ally 180 | . . . 140 40 . . . . . . . . . . . . . . Squads Dispatched 115 | . 1 . 7 . . 9 . . . . 11 . 30 14 19 12 2 10 Investigation 26 | . . . 2 . . 3 . . . . 4 . 7 2 . 3 . 5 Extermination 14 | . . . . . . 3 . . . . 1 . 3 1 4 1 . 1 Reinforcement 30 | . 1 . 2 . . 2 . . . . 4 . 6 4 4 3 2 2 Assault 25 | . . . . . . 1 . . . . 1 . 10 3 4 4 . 2 Garrison 20 | . . . 3 . . . . . . . 1 . 4 4 7 1 . . Intercept . | . . . . . . . . . . . . . . . . . . . Searches Triggered . | . . . . . . . . . . . . . . . . . . . Data Miner Redirects 3 | . . . . . . . . . . . . . . 1 . 1 . 1 Construction Impeded 1 | . . . . . . 1 . . . . . . . . . . . . Haulers Reinforced 5 | . . . . . . . . . . . 1 . . 1 1 2 . . Active Scanning Responses . | . . . . . . . . . . . . . . . . . . . Cargo Convoy Interrupts 2 | . . . . . . 1 . . . . . . 1 . . . . . Stealth | -11 -10 -9 -9 -9 -9 -6 -6 -6 -6 -5 -5 -5 -5 -4 -3 -2 -2 -2 --------- Run | Yrd Mat Mat Sto Rec Scr Fac Low Low Dat Pro Fac Was Fac Fac Res Res Tes Frg Distress Signals 32 | . . 1 3 . . 3 . . . . 2 . 2 5 3 4 1 8 Communications Jammed . | . . . . . . . . . . . . . . . . . . . Distress Signals . | . . . . . . . . . . . . . . . . . . . Times Spotted 763 | . 9 15 23 7 28 63 9 19 . 10 68 1 118 62 72 85 8 166 Peak Tracking Total 33 | . 4 5 5 2 9 8 3 4 . 5 8 1 14 10 6 33 3 22 Tactical Retreats 56 | . 1 1 . . . 7 1 2 . . 3 . 9 4 5 5 1 17 Traps | -11 -10 -9 -9 -9 -9 -6 -6 -6 -6 -5 -5 -5 -5 -4 -3 -2 -2 -2 ------- Run | Yrd Mat Mat Sto Rec Scr Fac Low Low Dat Pro Fac Was Fac Fac Res Res Tes Frg Traps Triggered 14 | . 2 . 1 . . 1 . . . . 2 . 3 2 . . . 3 Indirectly . | . . . . . . . . . . . . . . . . . . . Trap Hack Attempts . | . . . . . . . . . . . . . . . . . . . Triggered . | . . . . . . . . . . . . . . . . . . . Disarmed . | . . . . . . . . . . . . . . . . . . . Reprogrammed . | . . . . . . . . . . . . . . . . . . . Reused . | . . . . . . . . . . . . . . . . . . . Traps Extracted . | . . . . . . . . . . . . . . . . . . . Installed . | . . . . . . . . . . . . . . . . . . . Triggered . | . . . . . . . . . . . . . . . . . . . Machines | -11 -10 -9 -9 -9 -9 -6 -6 -6 -6 -5 -5 -5 -5 -4 -3 -2 -2 -2 ---------- Run | Yrd Mat Mat Sto Rec Scr Fac Low Low Dat Pro Fac Was Fac Fac Res Res Tes Frg Machines Disabled 25 | . . . . . 2 . . . . . 18 . 5 . . . . . Max in Single Turn 9 | . . . . . 1 . . . . . 9 . 2 . . . . . Garrison Access 3 | . . . . . . . . . . . 1 . . . . 1 1 . Machines Repaired . | . . . . . . . . . . . . . . . . . . . Machines Dismantled 1 | . . . . . 1 . . . . . . . . . . . . . Machines Sabotaged . | . . . . . . . . . . . . . . . . . . . Overloaded Fab Kills 3 | . . . . . . . . . . . . . . . . 3 . . Hacking | -11 -10 -9 -9 -9 -9 -6 -6 -6 -6 -5 -5 -5 -5 -4 -3 -2 -2 -2 --------- Run | Yrd Mat Mat Sto Rec Scr Fac Low Low Dat Pro Fac Was Fac Fac Res Res Tes Frg Machines Accessed 49 | . 1 1 5 5 2 5 . . . . 5 . 7 4 2 6 1 5 Terminals 16 | . 1 1 5 1 . 2 . . . . . . 1 2 1 2 . . Fabricators 6 | . . . . . . 2 . . . . 1 . . . . 1 . 2 Repair Stations 1 | . . . . . . . . . . . . . . . 1 . . . Recycling Units 20 | . . . . 4 . . . . . . 3 . 6 2 . 2 . 3 Scanalyzers 1 | . . . . . . 1 . . . . . . . . . . . . Garrison Access 3 | . . . . . . . . . . . 1 . . . . 1 1 . Total Hacks 97 | . 5 1 5 7 19 10 . . . . 9 . 10 6 5 8 1 11 Successful 71 | . . 1 5 7 19 7 . . . . 5 . 7 3 5 5 1 6 Failed 26 | . 5 . . . . 3 . . . . 4 . 3 3 . 3 . 5 Catastrophic 3 | . 1 . . . . . . . . . . . . 1 . . . 1 Database Lockouts . | . . . . . . . . . . . . . . . . . . . Manual 50 | . 5 1 2 7 . 2 . . . . 6 . 7 6 . 6 . 8 Terminals 24 | . 5 1 5 1 . 2 . . . . . . 3 4 1 2 . . Fabricators 13 | . . . . . . 5 . . . . 2 . . . . 1 . 5 Repair Stations 4 | . . . . . . . . . . . . . . . 4 . . . Recycling Units 29 | . . . . 6 . . . . . . 5 . 7 2 . 3 . 6 Scanalyzers 3 | . . . . . . 3 . . . . . . . . . . . . Garrison Access 5 | . . . . . . . . . . . 2 . . . . 2 1 . Terminal Hacks 30 | . . 1 5 . 19 1 . . . . . . 1 1 1 1 . . Record 19 | . . . . . 19 . . . . . . . . . . . . . Open Door 5 | . . . 4 . . 1 . . . . . . . . . . . . Level Access Points 1 | . . . . . . . . . . . . . . . 1 . . . Branch Access Points 3 | . . 1 1 . . . . . . . . . . . . 1 . . Repair Station Index 1 | . . . . . . . . . . . . . 1 . . . . . Recycling Unit Index 1 | . . . . . . . . . . . . . . 1 . . . . Fabricator Hacks 9 | . . . . . . 4 . . . . 2 . . . . . . 3 Load Schematic 5 | . . . . . . 2 . . . . 1 . . . . . . 2 Build 4 | . . . . . . 2 . . . . 1 . . . . . . 1 Repair Station Hacks 4 | . . . . . . . . . . . . . . . 4 . . . Scan Component 2 | . . . . . . . . . . . . . . . 2 . . . Repair 2 | . . . . . . . . . . . . . . . 2 . . . Recycling Unit Hacks . | . . . . . . . . . . . . . . . . . . . Scanalyzer 2 | . . . . . . 2 . . . . . . . . . . . . Insert Component 1 | . . . . . . 1 . . . . . . . . . . . . Analyze 1 | . . . . . . 1 . . . . . . . . . . . . Garrison Access Hacks 3 | . . . . . . . . . . . 1 . . . . 1 1 . Seal Access 3 | . . . . . . . . . . . 1 . . . . 1 1 . Unauthorized Hacks 21 | . . . . 5 . . . . . . 2 . 6 2 . 3 . 3 Terminals 1 | . . . . 1 . . . . . . . . . . . . . . Botnet 1 | . . . . 1 . . . . . . . . . . . . . . Fabricators 2 | . . . . . . . . . . . . . . . . 1 . 1 Overload 1 | . . . . . . . . . . . . . . . . 1 . . Recompile 1 | . . . . . . . . . . . . . . . . . . 1 Repair Stations . | . . . . . . . . . . . . . . . . . . . Recycling Units 18 | . . . . 4 . . . . . . 2 . 6 2 . 2 . 2 Tunnel 4 | . . . . 4 . . . . . . . . . . . . . . Fedlink 14 | . . . . . . . . . . . 2 . 6 2 . 2 . 2 Scanalyzers . | . . . . . . . . . . . . . . . . . . . Garrison Access . | . . . . . . . . . . . . . . . . . . . Data Cores Recovered 3 | . . . . . . . . . . . 1 . 1 . . . . 1 Used . | . . . . . . . . . . . . . . . . . . . Hacking Detections 21 | . 1 . 3 1 . 4 . . . . 3 . 1 2 . 2 . 4 Full Trace Events 7 | . 1 . . . . 2 . . . . 2 . 1 . . . . 1 Feedback Events . | . . . . . . . . . . . . . . . . . . . Feedback Blocked . | . . . . . . . . . . . . . . . . . . . Robot Schematics Acquired 1 | . . . . . . . . . . . . . . . . . 1 . Robots Built . | . . . . . . . . . . . . . . . . . . . Authchips . | . . . . . . . . . . . . . . . . . . . Time . | . . . . . . . . . . . . . . . . . . . Total Robot Build Rating . | . . . . . . . . . . . . . . . . . . . Part Schematics Acquired 6 | . . . . . . 1 . . . . . . . . . . 5 . Parts Built 8 | . . . . . . 4 . . . . 2 . . . . . . 2 Authchips 1 | . . . . . . . . . . . . . . . . . . 1 Time 220 | . . . . . . 142 . . . . 47 . . . . . . 31 Total Part Build Rating 40 | . . . . . . 20 . . . . 10 . . . . . . 10 Parts Repaired 2 | . . . . . . . . . . . . . . . 2 . . . Time 76 | . . . . . . . . . . . . . . . 76 . . . Parts Recycled . | . . . . . . . . . . . . . . . . . . . Recycled Matter . | . . . . . . . . . . . . . . . . . . . Retrieved Matter . | . . . . . . . . . . . . . . . . . . . Retrieved Components . | . . . . . . . . . . . . . . . . . . . Parts Scanalyzed 1 | . . . . . . 1 . . . . . . . . . . . . Part Schematics Acquired 1 | . . . . . . 1 . . . . . . . . . . . . Parts Damaged . | . . . . . . . . . . . . . . . . . . . Bothacking | -11 -10 -9 -9 -9 -9 -6 -6 -6 -6 -5 -5 -5 -5 -4 -3 -2 -2 -2 ------------ Run | Yrd Mat Mat Sto Rec Scr Fac Low Low Dat Pro Fac Was Fac Fac Res Res Tes Frg Used RIF Installer . | . . . . . . . . . . . . . . . . . . . Robots Hacked . | . . . . . . . . . . . . . . . . . . . Non-combat . | . . . . . . . . . . . . . . . . . . . Combat . | . . . . . . . . . . . . . . . . . . . Robot Hacks Applied . | . . . . . . . . . . . . . . . . . . . Relay Couplers Released . | . . . . . . . . . . . . . . . . . . . Fabnet Peak Effective % . | . . . . . . . . . . . . . . . . . . . Robots Rewired . | . . . . . . . . . . . . . . . . . . . Allies Hacked . | . . . . . . . . . . . . . . . . . . . Hacks Repelled . | . . . . . . . . . . . . . . . . . . . Allies | -11 -10 -9 -9 -9 -9 -6 -6 -6 -6 -5 -5 -5 -5 -4 -3 -2 -2 -2 -------- Run | Yrd Mat Mat Sto Rec Scr Fac Low Low Dat Pro Fac Was Fac Fac Res Res Tes Frg Total Allies 10 | . . . 10 . . . . . . . . . . . . . . . Largest Group 10 | . . . 10 2 . . . . . . . . . . . . . . Highest-Rated Group 88 | . . . 88 24 . . . . . . . . . . . . . . Highest-Rated Ally 16 | . . . 16 16 . . . . . . . . . . . . . . Total Orders . | . . . . . . . . . . . . . . . . . . . Ally Attacks 151 | . . . 147 4 . . . . . . . . . . . . . . Total Damage 1339 | . . . 1293 46 . . . . . . . . . . . . . . Kills 23 | . . . 23 . . . . . . . . . . . . . . . Allies Corrupted 1 | . . . 1 . . . . . . . . . . . . . . . Allies Melted 2 | . . . . . 2 . . . . . . . . . . . . . Intel | -11 -10 -9 -9 -9 -9 -6 -6 -6 -6 -5 -5 -5 -5 -4 -3 -2 -2 -2 ------- Run | Yrd Mat Mat Sto Rec Scr Fac Low Low Dat Pro Fac Was Fac Fac Res Res Tes Frg Active Infowar (turns) . | . . . . . . . . . . . . . . . . . . . Robot Analysis Total . | . . . . . . . . . . . . . . . . . . . Derelict Logs Recovered 3 | . . . . . . . 1 1 . 1 . . . . . . . . Drone Launches . | . . . . . . . . . . . . . . . . . . . Drone Recoveries . | . . . . . . . . . . . . . . . . . . . Exploration | -11 -10 -9 -9 -9 -9 -6 -6 -6 -6 -5 -5 -5 -5 -4 -3 -2 -2 -2 ------------- Run | Yrd Mat Mat Sto Rec Scr Fac Low Low Dat Pro Fac Was Fac Fac Res Res Tes Frg Turns Passed 12891 | 18 186 323 622 480 1013 1065 283 400 28 379 1227 104 1695 686 1660 686 217 1819 Spaces Moved 15027 | 33 203 376 609 919 1471 866 444 776 81 276 1587 190 2090 730 1358 787 291 1940 Core 147 | 33 114 . . . . . . . . . . . . . . . . . Treads . | . . . . . . . . . . . . . . . . . . . Legs . | . . . . . . . . . . . . . . . . . . . Wheels . | . . . . . . . . . . . . . . . . . . . Hover . | . . . . . . . . . . . . . . . . . . . Flight 14880 | . 89 376 609 919 1471 866 444 776 81 276 1587 190 2090 730 1358 787 291 1940 Fastest Speed 32 | 50 37 37 37 37 37 37 34 34 34 32 32 42 42 42 42 42 42 42 Average Speed 39 | 50 44 37 37 37 37 37 34 34 34 32 38 42 42 42 42 42 43 42 Slowest Speed 125 | 50 50 37 37 37 37 117 37 34 34 34 122 42 125 42 42 42 125 42 Overloaded Moves . | . . . . . . . . . . . . . . . . . . . Propulsion Burnouts . | . . . . . . . . . . . . . . . . . . . Robots Hopped 164 | . . 5 16 12 2 18 1 . . . 11 . 24 16 13 12 7 27 Potential Cave-ins 2 | . . . . . . . . . . . . . . . . . . 2 Cave-ins Triggered 1 | . . . . . . . . . . . . . . . . . . 1 Exploration Rate (%) 47 | 2 46 42 69 86 87 20 58 78 69 52 35 73 43 26 22 28 36 38 Regions Visited 18 Branch Regions 9 Pre-discovered Areas 6 | . . . . 4 . . 1 . . . 1 . . . . . . . Known Exits Taken 4 | . . 1 1 . . . . . . . . . . . 1 1 . . Unknown Exits Taken 12 | 1 1 . . 1 1 1 1 1 1 1 . . 1 1 . . 1 . Scrap Searched 6 | . . . . . 3 . . 2 . 1 . . . . . . . . Spaces Dug . | . . . . . . . . . . . . . . . . . . . Terrain Destroyed 38 | . . . . . . . . . . . . . 38 . . . . . Melee . | . . . . . . . . . . . . . . . . . . . Projectile . | . . . . . . . . . . . . . . . . . . . AOE 38 | . . . . . . . . . . . . . 38 . . . . . Terrain Rammed . | . . . . . . . . . . . . . . . . . . . Walls Destroyed . | . . . . . . . . . . . . . . . . . . . Machines Disabled . | . . . . . . . . . . . . . . . . . . . Actions | -11 -10 -9 -9 -9 -9 -6 -6 -6 -6 -5 -5 -5 -5 -4 -3 -2 -2 -2 --------- Run | Yrd Mat Mat Sto Rec Scr Fac Low Low Dat Pro Fac Was Fac Fac Res Res Tes Frg Total 19417 | 33 253 470 925 983 1879 1362 529 842 80 527 1924 197 2462 968 2103 961 351 2568 Wait 2472 | . 9 33 230 34 379 304 51 23 . 207 132 . 130 101 500 47 1 291 Move 14700 | 32 202 365 580 894 1466 833 441 775 80 275 1565 189 2042 702 1331 763 277 1888 Hop 147 | . . 5 12 12 2 14 1 . . . 11 . 24 11 13 12 6 24 Pick Up 65 | . . 1 3 . 1 10 1 2 . . 3 . 4 5 16 6 3 10 Fast Attach 60 | 1 4 1 9 1 1 7 . 1 . 1 6 1 9 2 4 2 1 9 Attach 4 | . . . . . . 1 1 . . . . . 2 . . . . . Detach 2 | . . . . . . 1 . . . . 1 . . . . . . . Swap 28 | . . 6 3 . . 1 3 2 . 4 9 . . . . . . . Drop 97 | . . 4 10 . . 15 2 . . 3 12 1 7 6 8 5 10 14 Fire 935 | . 29 42 32 29 22 95 17 24 . 15 102 6 153 46 121 62 10 130 Melee . | . . . . . . . . . . . . . . . . . . . Ram . | . . . . . . . . . . . . . . . . . . . Kick . | . . . . . . . . . . . . . . . . . . . Crush . | . . . . . . . . . . . . . . . . . . . Escape Stasis 85 | . . . 18 . . . . . . . 18 . . 36 . . . 13 Rewire . | . . . . . . . . . . . . . . . . . . . Trap . | . . . . . . . . . . . . . . . . . . . Miscellaneous 822 | . 9 13 28 13 8 81 12 15 . 22 65 . 91 59 110 64 43 189 Route ------- -11/Scrapyard -10/Materials (discovered 2 exits: *Mat x2) -9/Materials (discovered 2 exits: *Min / *Sto) -9/Storage (discovered 2 exits: [*Mat] / *Rec) -9/Recycling (discovered 2 exits: [*Fac] / *Scr) -9/Scraptown (discovered 2 exits: *Fac x2) -6/Factory (discovered 2 exits: [*Low] / [*Ext]) -6/Lower Caves -6/Lower Caves (discovered 2 exits: *Fac / [*Dat]) -6/Data Miner -5/Proximity Caves -5/Factory -5/Waste -5/Factory (discovered 3 exits: *Fac x3) -4/Factory -3/Research (discovered 3 exits: *Res x3) -2/Research (discovered 3 exits: [*Acc] / *Tes x2) -2/Testing (discovered 2 exits: [*Sec] / *Frg) -2/Protoforge History --------- Turn | Location | Event 3 | -11/Scrapyard | Upgraded with Propulsion slot (x1) 3 | -11/Scrapyard | Upgraded with Weapon slot (x1) 8 | -11/Scrapyard | Discovered new exit (range 12) 19 | -11/Scrapyard | Entered Materials 162 | -10/Materials | Discovered new exit (range 16) 192 | -10/Materials | Discovered new exit (range 14) 205 | -10/Materials | Entered another Materials area 207 | -9/Materials | Reached level 2 335 | -9/Materials | Identified exit to Mines 335 | -9/Materials | Identified exit to Storage 458 | -9/Materials | Reached level 3 528 | -9/Materials | Entered Storage 553 | -9/Storage | Reached level 4 566 | -9/Storage | Build established: Scavenger-Mutant 571 | -9/Storage | Assisted by bots powering up and referring to "LRC-V3" 598 | -9/Storage | Reached level 5 731 | -9/Storage | Discovered new exit (range 16) 735 | -9/Storage | Upgraded with Utility slot (x4) 736 | -9/Storage | Upgraded with Weapon slot (x1) 814 | -9/Storage | Reached level 6 846 | -9/Storage | Garrison activated, responded to threat 935 | -9/Storage | Identified exit to Recycling 965 | -9/Storage | Used back door to open Recycling access 1150 | -9/Storage | Entered Recycling 1150 | -9/Recycling | Accompanied by 2 allies 1152 | -9/Recycling | Reached level 7 1283 | -9/Recycling | Discovered new exit (range 15) 1302 | -9/Recycling | Reached level 8 1481 | -9/Recycling | Upgraded with Weapon slot (x1) 1613 | -9/Recycling | Build established: Scavenger-Gunner 1622 | -9/Recycling | Scanned before Scraplab entrance 1627 | -9/Recycling | Entered Scraplab 1630 | -9/Recycling | Discovered new exit (range 2) 1630 | -9/Recycling | Entered Scraptown 1716 | -9/Scraptown | Discovered new exit (range 7) 1738 | -9/Scraptown | Visited Awakened 1749 | -9/Scraptown | Visited SPCMW 1759 | -9/Scraptown | Visited Cyclists 1769 | -9/Scraptown | Visited Junk Repository 1845 | -9/Scraptown | Visited IN-MT5's Study 1855 | -9/Scraptown | Visited UFD Registry 1855 | -9/Scraptown | Registered with UFD as "Laserparser" 1868 | -9/Scraptown | Visited Chapter 10 1877 | -9/Scraptown | Visited Abandonware Association 1895 | -9/Scraptown | Visited A0-MCA Data Center 1897 | -9/Scraptown | Given an A+ rating by A0-MCA 1908 | -9/Scraptown | Visited Science Guys 1914 | -9/Scraptown | Visited Infowarlord's Domain 1955 | -9/Scraptown | Visited Botcube Research 1962 | -9/Scraptown | Visited Scrap Suit Storage 1966 | -9/Scraptown | Visited Scrapoid Pod Storage 1976 | -9/Scraptown | Visited Junk Cannon Lab 2005 | -9/Scraptown | Discovered new exit (range 3) 2019 | -9/Scraptown | Visited DA-N13 Charitable Foundation 2020 | -9/Scraptown | Found DCF Scrap (29 items) 2070 | -9/Scraptown | Met Optimus 2070 | -9/Scraptown | Accepted into 0bPrime 2470 | -9/Scraptown | Civil war broke out across Scraptown 2534 | -9/Scraptown | Lost 3 allies 2608 | -9/Scraptown | Core integrity fell below 50% 2618 | -9/Scraptown | Lost 3 allies 2643 | -9/Scraptown | Entered Factory 2644 | -6/Factory | Core integrity fell below 50% 2645 | -6/Factory | Reached level 9 2876 | -6/Factory | Fabricated Thermic Laser (x2) 2944 | -6/Factory | Reached level 10 3026 | -6/Factory | Discovered new exit (range 10) 3084 | -6/Factory | Fabricated Thermic Laser? 3218 | -6/Factory | Build established: Hacker-Gunner 3289 | -6/Factory | Reached level 11 3552 | -6/Factory | Reached level 12 3587 | -6/Factory | Discovered new exit (range 5) 3693 | -6/Factory | First assault squad dispatched 3697 | -6/Factory | Cargo convoy interrupted 3708 | -6/Factory | Entered Lower Caves 3758 | -6/Lower Caves | Reached level 13 3760 | -6/Lower Caves | Attracted the attention of an 0b10 checkpoint 3779 | -6/Lower Caves | Upgraded with Utility slot (x1) 3847 | -6/Lower Caves | Spotted B-75 Beast 3854 | -6/Lower Caves | Destroyed B-75 Beast 3956 | -6/Lower Caves | Discovered new exit (range 14) 3991 | -6/Lower Caves | Entered another Lower Caves area 3994 | -6/Lower Caves | Discovered new exit (range 10) 4081 | -6/Lower Caves | Learned location of 1 exit from Factory 4103 | -6/Lower Caves | Encountered a Warlord checkpoint 4160 | -6/Lower Caves | Reached level 14 4201 | -6/Lower Caves | Spotted B-75 Beast 4217 | -6/Lower Caves | Core integrity fell below 20% 4224 | -6/Lower Caves | Destroyed B-75 Beast 4387 | -6/Lower Caves | Discovered new exit (range 5) 4391 | -6/Lower Caves | Entered Data Miner 4391 | -6/Data Miner | Discovered new exit (range 6) 4393 | -6/Data Miner | Reached level 15 4398 | -6/Data Miner | Met Data Miner 4410 | -6/Data Miner | Received God Mode back door access code from Data Miner 4419 | -6/Data Miner | Entered Proximity Caves 4421 | -5/Proximity Caves | Reached level 16 4480 | -5/Proximity Caves | Found DCF Scrap (14 items) 4511 | -5/Proximity Caves | Attracted the attention of an 0b10 checkpoint 4553 | -5/Proximity Caves | Learned 8 Factory zone layouts 4628 | -5/Proximity Caves | Received a Behemoth hack from an annoying Tinkerer 4688 | -5/Proximity Caves | Discovered new exit (range 9) 4745 | -5/Proximity Caves | Build established: Hacker-Sprinter 4798 | -5/Proximity Caves | Entered Factory 4799 | -5/Factory | Identified exit to Upper Caves 4800 | -5/Factory | Reached level 17 4894 | -5/Factory | Garrison activated, responded to threat 4895 | -5/Factory | Reached level 18 5277 | -5/Factory | Reached level 19 5357 | -5/Factory | Upgraded with Weapon slot (x1) 5357 | -5/Factory | Reached level 20 5404 | -5/Factory | Fabricated Thermic Laser (x2) 5512 | -5/Factory | Destroyed 8 combat bots 5698 | -5/Factory | First assault squad dispatched 5707 | -5/Factory | Build established: Pyromaniac-Gunner 5751 | -5/Factory | Reached level 21 5819 | -5/Factory | Loaded intel: 8 recycling unit locations 5896 | -5/Factory | Learned location of Protoforge (-2) 6025 | -5/Factory | Sucked down chute 6025 | -5/Factory | Entered Waste 6025 | -5/Waste | The area was eerily silent 6030 | -5/Waste | Found Broken Adv. Powered Armor 6075 | -5/Waste | A Compactor rumbled back to life 6075 | -5/Waste | Spotted C-40 Crusher 6083 | -5/Waste | Destroyed C-40 Crusher 6113 | -5/Waste | Discovered new exit (range 12) 6129 | -5/Waste | Entered Factory 6270 | -5/Factory | Loaded intel: 8 recycling unit locations 6290 | -5/Factory | Discovered new exit (range 10) 6356 | -5/Factory | Reached level 22 6533 | -5/Factory | Destroyed 9 combat bots 6606 | -5/Factory | System corruption reached 10% 6756 | -5/Factory | Spotted B-75 Beast 6764 | -5/Factory | Destroyed B-75 Beast 6794 | -5/Factory | Discovered new exit (range 5) 6918 | -5/Factory | Destroyed 9 combat bots 7016 | -5/Factory | Discovered new exit (range 14) 7029 | -5/Factory | First assault squad dispatched 7045 | -5/Factory | Build established: Pyromaniac-Tank 7130 | -5/Factory | Reached level 23 7156 | -5/Factory | Garrison activated, responded to threat 7305 | -5/Factory | Cargo convoy interrupted 7606 | -5/Factory | High security lockdown imminent 7675 | -5/Factory | Garrison activated, responded to threat 7686 | -5/Factory | High security lockdown engaged 7824 | -5/Factory | Entered another Factory area 7826 | -4/Factory | Reached level 24 7868 | -4/Factory | Loaded intel: 8 recycling unit locations 8074 | -4/Factory | First assault squad dispatched 8091 | -4/Factory | Garrison activated, responded to threat 8121 | -4/Factory | Reached level 25 8121 | -4/Factory | Garrison activated, responded to threat 8250 | -4/Factory | Spotted B-86 Titan 8259 | -4/Factory | Destroyed B-86 Titan 8283 | -4/Factory | Spotted B-86 Titan 8312 | -4/Factory | Destroyed 7 combat bots 8334 | -4/Factory | Discovered new exit (range 14) 8429 | -4/Factory | Destroyed 8 combat bots 8458 | -4/Factory | Incoming assault squad redirected 8497 | -4/Factory | Build established: Pyromaniac-Gunner 8510 | -4/Factory | Entered Research 8512 | -3/Research | Reached level 26 8512 | -3/Research | Reached level 27 8585 | -3/Research | Repaired Reflective Plating 8624 | -3/Research | Repaired Lgt. Nuclear Core 8641 | -3/Research | Garrison activated, responded to threat 8701 | -3/Research | Core integrity fell below 50% 8760 | -3/Research | First assault squad dispatched 8773 | -3/Research | Garrison activated, responded to threat 8826 | -3/Research | Destroyed 7 combat bots 8967 | -3/Research | Reached level 28 9079 | -3/Research | Spotted B-86 Titan 9105 | -3/Research | Garrison activated, responded to threat 9182 | -3/Research | Identified exit to Research 9247 | -3/Research | Destroyed B-86 Titan 9434 | -3/Research | Spotted B-86 Titan 9458 | -3/Research | Destroyed B-86 Titan 9976 | -3/Research | Reached level 29 10170 | -3/Research | Entered another Research area 10172 | -2/Research | Reached level 30 10221 | -2/Research | Garrison activated, responded to threat 10260 | -2/Research | Loaded intel: 5 recycling unit locations 10290 | -2/Research | Identified exit to Testing 10447 | -2/Research | Build established: Hauler-Gunner 10592 | -2/Research | Reached level 31 10700 | -2/Research | Core integrity fell below 50% 10711 | -2/Research | Incoming investigation squad redirected 10720 | -2/Research | High security lockdown imminent 10761 | -2/Research | Destroyed 8 combat bots 10769 | -2/Research | System corruption reached 10% 10800 | -2/Research | High security lockdown engaged 10801 | -2/Research | Discovered new exit (range 16) 10810 | -2/Research | Spotted B-90 Cyclops 10856 | -2/Research | Entered Testing 10857 | -2/Testing | Spotted PL-WX9GJWT1HJ 10862 | -2/Testing | Destroyed PL-WX9GJWT1HJ 10962 | -2/Testing | Reached level 32 10962 | -2/Testing | Scanned by Researcher 11006 | -2/Testing | Spotted Fortress 11050 | -2/Testing | Discovered new exit (range 5) 11050 | -2/Testing | Discovered new exit (range 6) 11073 | -2/Testing | Entered Protoforge 11099 | -2/Protoforge | Spotted Hotshot 11099 | -2/Protoforge | Superfortress began startup sequence 11100 | -2/Protoforge | Spotted Hotshot 11114 | -2/Protoforge | Destroyed Hotshot 11141 | -2/Protoforge | Destroyed Hotshot 11146 | -2/Protoforge | Spotted Hotshot 11195 | -2/Protoforge | Spotted Hotshot 11196 | -2/Protoforge | Spotted Hotshot 11230 | -2/Protoforge | Destroyed Hotshot 11260 | -2/Protoforge | Destroyed Hotshot 11323 | -2/Protoforge | First assault squad dispatched 11398 | -2/Protoforge | Spotted Hotshot 11408 | -2/Protoforge | Destroyed Hotshot 11415 | -2/Protoforge | Destroyed Hotshot 11462 | -2/Protoforge | Build established: Hauler-Tank 11470 | -2/Protoforge | Spotted Overlord 11749 | -2/Protoforge | Spotted B-90 Cyclops 11807 | -2/Protoforge | Destroyed B-90 Cyclops 11885 | -2/Protoforge | Spotted AP7-3 11885 | -2/Protoforge | Spotted AP7-3 11893 | -2/Protoforge | Spotted EXE-6 11893 | -2/Protoforge | Spotted EXE-6 11900 | -2/Protoforge | Spotted SKR-2 11902 | -2/Protoforge | Spotted SKR-2 11902 | -2/Protoforge | Spotted SKR-2 11905 | -2/Protoforge | Incoming assault squad redirected 11918 | -2/Protoforge | UFD initiated attack on Protoforge 11918 | -2/Protoforge | Loaded intel: 3 recycling unit locations 11954 | -2/Protoforge | Optimus greeted in Protoforge 11980 | -2/Protoforge | Crushed by falling debris 12035 | -2/Protoforge | Found UFD Drillbomb 12036 | -2/Protoforge | Lost 37 allies 12124 | -2/Protoforge | Lost 10 allies 12134 | -2/Protoforge | Reached level 33 12216 | -2/Protoforge | Fabricated Thermic Laser (x2) 12277 | -2/Protoforge | Spotted Striker 12277 | -2/Protoforge | Spotted Executioner 12328 | -2/Protoforge | Lost 4 allies 12370 | -2/Protoforge | Spotted Executioner 12378 | -2/Protoforge | Spotted Striker 12388 | -2/Protoforge | Destroyed Striker 12440 | -2/Protoforge | Spotted Executioner 12440 | -2/Protoforge | Spotted Striker 12440 | -2/Protoforge | Spotted Striker 12496 | -2/Protoforge | Spotted Executioner 12509 | -2/Protoforge | Build established: Hauler-Gunner 12509 | -2/Protoforge | Destroyed Executioner 12546 | -2/Protoforge | Lost 7 allies 12589 | -2/Protoforge | Installed UFD Drillbomb at designated target 12589 | -2/Protoforge | UFD reported confirmed Drillbomb installation 12595 | -2/Protoforge | Found UFD Drillbomb 12605 | -2/Protoforge | Spotted Hotshot 12606 | -2/Protoforge | Spotted Hotshot 12606 | -2/Protoforge | Spotted Hotshot 12606 | -2/Protoforge | Spotted Hotshot 12607 | -2/Protoforge | Spotted Striker 12613 | -2/Protoforge | Spotted Hotshot 12615 | -2/Protoforge | Spotted Hotshot 12658 | -2/Protoforge | Lost 7 allies 12660 | -2/Protoforge | Spotted Executioner 12661 | -2/Protoforge | Spotted Executioner 12661 | -2/Protoforge | Spotted Striker 12683 | -2/Protoforge | Destroyed Striker 12694 | -2/Protoforge | Core integrity fell below 20% 12699 | -2/Protoforge | Spotted Hotshot 12699 | -2/Protoforge | Spotted Hotshot 12700 | -2/Protoforge | Spotted Hotshot 12702 | -2/Protoforge | Destroyed Hotshot 12752 | -2/Protoforge | Spotted Striker 12754 | -2/Protoforge | Spotted Striker 12780 | -2/Protoforge | P-80 Master assimilated allied Lugger 022 12800 | -2/Protoforge | Destroyed Hotshot 12882 | -2/Protoforge | Spotted Hotshot 12883 | -2/Protoforge | Spotted Hotshot 12885 | -2/Protoforge | Spotted Hotshot 12888 | -2/Protoforge | Spotted Hotshot 12890 | -2/Protoforge | Spotted Executioner 12890 | -2/Protoforge | Spotted Striker 12892 | -2/Protoforge | Self-destructed Last Messages --------------- N-04 Retriever collects Ovr. Huge Scrapsphere. H4-50T(j) cannibalizes Imp. Heat Sink to repair Mak. Coolant Network. System corrupted: Slammed into ceiling. N-04 Retriever collects Salvaging Laser. Slug penetrates Hotshot. N-04 Retriever collects Ion Engine. Slug penetrates Hotshot. Hotshot suffers critical hit (Destroy). Hotshot destroyed. Slug penetrates Hotshot. Hotshot destroyed. N-04 Retriever collects Shield Leg. N-04 Retriever collects Adv. Cryofiber Web. Slug penetrates Hotshot. H4-50T(j) destroyed. Slug penetrates Machine. Slug penetrates H-88 Terminator. Penetrated by Slug. Critical hit (Destroy). Force Field destroyed. Map ----- +----------------------------------------------------+ | # ##??# " " % %" """"""""""""""""""""""""""" | | # ##### " " " "%"%" " """"""""""""""""""""""""""" | | #/##### ""% % " """"""""""""""""""""""""""" | | %=! ## = [% %"""""""""""""""""""""""""" | | %| ## % % """""""""""""""""""""""""" | | " " ## *""""" %%% """""""""""""""""""""""""" | | " " ## """ """"""""""""""""""""""""" | | " " ## "% """"""""""""""""""""""" | | "" ## % """"""""""""""""""""" | | " " ## "" " %%"""""""""""""""""""%% | | ##==!%" [* "" %" %%""""""""""""""""" | | "#%%*!" = !""" % *!!""""""""""""""" " | | ##=""##=!%!% "% " % n % %[gg!!""""""""" % | | #""%"## *%!=% % n g "%%!=%%%%n% %%% " %%%% | | %%%%&%/ ![ " "E%&%i %%%!%%!%%%%%%%%% % | | &%%%%%"%% %%%""" &%shg% &%!%&%! E& % % % | | %% % %" % %&% %% % %&%%!%%%%!=%%%%%% %"%"%% ! % | | !#*!""# " " K %&=%%=%*! ["&% "%%*%!%& | | ##[#" # %=%=%% %"""A "!%= =%% | | # # " " """!%!&%*!![ " | | " ### "" " " % %!%=|!! % % | | "" ### " "" ! " % | | "" ### "" " """"" "" %"" | | "" ### " " " " " % % | | ### "" "" | | ####### " "" @ """" " " | | ####### "" "" """"""""""" | | ##????# """ " " " """""""""" " | | ##????######## ################################## | | ##???????????####????????????????????????????????? | | ##??????????????????????????????????????????????## | | ##??????????????????????????????????????????????#" | | ##??????????????????????????????????????????????#" | | ##??????????????????????????????????????????????#" | | ##??????????????????????????????????????????????#" | | ##??????????????????????????????????????????????#" | | ##??????????????????????????????????????????????#" | | ##??????????????????????????????????????????????#" | | ##??????????????????????????????????????????????## | | ##???????????????????????????????????????????????? | | ##???????????????????????????????????????????????? | | ##???????????????????????????????????????????????? | | ##???????????????????????????????????????????????? | | ##???????????????????????????????????????????????? | | ##???????????????????????????????????????????????? | | ##???????????????????????????????????????????????? | | ?????????????????????????????????????????????????? | | ?????????????????????????????????????????????????? | | ?????????????????????????????????????????????????? | | ?????????????????????????????????????????????????? | +----------------------------------------------------+ Best States ------------- Heat Dissipation 146 Energy Generation 29 Energy Capacity 860 Matter Stores 300 Matter Capacity 300 Sight Range 16 Terrain Scan Density 10 Armor Coverage 225 Resistance: KI 10 Resistance: TH 15 Evasion (%) 63 Targeting Accuracy 12 Energy Filtering 30 Salvage Targeting 3 Offensive Hacking 30 Item Schematics ----------------- Thermic Laser | -6/Factory | Scanalyzed Lrn. Phase Cannon | -2/Testing | Archive Adv. Energy Well | -2/Testing | Archive Exp. ECM Suite | -2/Testing | Archive Cld. Phase Cannon | -2/Testing | Archive Exp. Energy Well | -2/Testing | Archive Robot Schematics ------------------ A-27 Freighter | -2/Testing | Archive Fabricated ------------ Thermic Laser | x2 | -6/Factory Thermic Laser | x2 | -6/Factory Thermic Laser | x2 | -5/Factory Thermic Laser | x2 | -2/Protoforge | Authchip Repaired ---------- Reflective Plating | 58% | -3/Research Lgt. Nuclear Core | 70% | -3/Research Alien Tech Used ----------------- None Achievements -------------- Equal Opportunity Bot Challenges ------------ None RPGLIKE | -11 -10 -9 -9 -9 -9 -6 -6 -6 -6 -5 -5 -5 -5 -4 -3 -2 -2 -2 --------- Run | Yrd Mat Mat Sto Rec Scr Fac Low Low Dat Pro Fac Was Fac Fac Res Res Tes Frg Levels Raised 32 | . . 2 3 2 . 4 1 1 1 1 5 . 2 2 4 2 1 1 XP Earned 51403 | 3000 700 2780 5273 2076 627 5905 1300 2150 650 2300 6978 97 3261 2917 5146 3683 762 1798 XP Spent 50395 | 3000 . 470 4690 4460 500 4550 1700 910 . 1600 9575 . 3600 3450 6000 3440 . 2450 Upgrades 83 | 6 . 4 6 10 1 14 1 5 . 1 16 . 2 4 3 4 . 6 Propulsion Slot 1 | 1 . . . . . . . . . . . . . . . . . . Utility Slot 5 | . . . 4 . . . 1 . . . . . . . . . . . Weapon Slot 4 | 1 . . 1 1 . . . . . . 1 . . . . . . . Core Integrity 6 | . . . . . . . . 4 . . . . . . . 2 . . Heat Dissipation 17 | . . 2 1 4 . 5 . . . . 5 . . . . . . . Energy Generation 3 | . . . . . . . . . . . 3 . . . . . . . Energy Storage 14 | . . . . . . 8 . . . . 6 . . . . . . . Mass Support 6 | . . 1 . 1 . 1 . . . 1 1 . 1 . . . . . Inventory Capacity 10 | . . 1 . . 1 . . 1 . . . . 1 2 3 1 . . Ranged Accuracy 6 | . . . . 4 . . . . . . . . . . . 1 . 1 Hack Attack % 4 | 4 . . . . . . . . . . . . . . . . . . KI Resistance % 2 | . . . . . . . . . . . . . . . . . . 2 TH Resistance % 3 | . . . . . . . . . . . . . . . . . . 3 TH Damage % 2 | . . . . . . . . . . . . . . 2 . . . . Protomatter Created 8325 | . 73 150 53 196 212 701 56 105 . 162 801 . 1301 459 1603 960 88 1405 Integrity Restored 16566 | . 174 295 611 247 73 1637 255 315 . 486 1356 . 1819 1104 2190 1366 836 3802 Core 13230 | . 174 295 445 174 57 1420 255 315 . 486 1049 . 1392 826 1601 988 560 3193 Parts 3336 | . . . 166 73 16 217 . . . . 307 . 427 278 589 378 276 609 Protomatter Decayed 9966 | . 15 62 238 150 3489 88 . . . 41 23 86 834 48 327 472 42 4051 Game ------ Seed PotentialSignalBay Manual? 0 Play Time 02:39:16 Cumulative 238.6 hours Start 2025.06.01 @ 20:36:26 End 2025.06.01 @ 23:50:55 Sessions 5 Manual Loads 0 Difficulty Rogue Special Mode Winter2019/RPGLIKE Game No. 236 Rogue 47 Adventurer 177 Explorer 12 Win Type - Total 63 Types 18/1/16/2/12/0/4/5/0/5 Lore% 52 Gallery% 51 Achievement% 69 Wizard Run 0 Options --------- Layout 0 ASCII 0 Keyboard 0 Movement Numpad Keybinds 0 Fullscreen 2 Font 12/Smallcaps Map View 83x54 Zoom Use 0% Tactical HUD 0 Map Filters NONE Filters NONE Steam X RUN: f58d70af-49f0-4036-945e-af61c98af2b2